Workbook

Sheet Info & Summary
A1: Instrument Information
B2: Instrument Type | D2: Serial Number | F2: Instrument Name
B3: SBP | D3: enter S/N | F3: enter name
A5: Current Calibration Summary
A6: Pressure Cells
C7: TPC | E7: PPC A | G7: PPC B
A8: Zero | C8: ='Current Calibrations'!$B$32 -> -1694.71941 | D8: ='Current Calibrations'!$C$32 -> mV | E8: ='Current Calibrations'!$E$32 -> -1694.71941 | F8: ='Current Calibrations'!$F$32 -> mV | G8: ='Current Calibrations'!$H$32 -> -1694.71941 | H8: ='Current Calibrations'!$I$32 -> mV
A9: Slope | C9: ='Current Calibrations'!$B$33 -> 341.3470762 | D9: ='Current Calibrations'!$C$33 -> mV/Mpa | E9: ='Current Calibrations'!$E$33 -> 341.3470762 | F9: ='Current Calibrations'!$F$33 -> mV/Mpa | G9: ='Current Calibrations'!$H$33 -> 341.3470762 | H9: ='Current Calibrations'!$I$33 -> mV/Mpa
A10: Arm Springs
C11: Arm 1 | E11: Arm 2 | G11: Arm 3 | I11: Arm 4 | K11: Arm 5 | M11: Arm 6
A12: Zero | C12: ='Current Calibrations'!$B$52 -> -280.6561462 | D12: ='Current Calibrations'!$C$52 -> mV | E12: ='Current Calibrations'!$E$52 -> 246.7727575 | F12: ='Current Calibrations'!$F$52 -> mV | G12: ='Current Calibrations'!$H$52 -> -266.8697674 | H12: ='Current Calibrations'!$I$52 -> mV | I12: ='Current Calibrations'!$K$52 -> -280.6561462 | J12: ='Current Calibrations'!$C$52 -> mV | K12: ='Current Calibrations'!$N$52 -> 246.7727575 | L12: ='Current Calibrations'!$F$52 -> mV | M12: ='Current Calibrations'!$Q$52 -> -266.8697674 | N12: ='Current Calibrations'!$I$52 -> mV
A13: Slope | C13: ='Current Calibrations'!$B$53 -> 302.6508306 | D13: ='Current Calibrations'!$C$53 -> mV/mm | E13: ='Current Calibrations'!$E$53 -> 288.7820598 | F13: ='Current Calibrations'!$F$53 -> mV/mm | G13: ='Current Calibrations'!$H$53 -> 291.2418605 | H13: ='Current Calibrations'!$I$53 -> mV/mm | I13: ='Current Calibrations'!$K$53 -> 302.6508306 | J13: ='Current Calibrations'!$C$53 -> mV/mm | K13: ='Current Calibrations'!$N$53 -> 288.7820598 | L13: ='Current Calibrations'!$F$53 -> mV/mm | M13: ='Current Calibrations'!$Q$53 -> 291.2418605 | N13: ='Current Calibrations'!$I$53 -> mV/mm
A14: Straightness Data Summary
A15: See the straightness calibration sheet for the locations of points A to F
A16: Date | B16: A | C16: B | D16: C | E16: D | F16: E | G16: F | H16: Operator

Sheet Current Calibrations
A1: Calibration Date | C1: Operator | E1: Instrument Type | G1: Serial Number | I1: Instrument Name
E2: ='Info & Summary'!B3 -> SBP | G2: ='Info & Summary'!D3 -> enter S/N | I2: ='Info & Summary'!F3 -> enter name
A3: Notes:
E7: Pressure cells | G7: Test Gauge:
A9: Mpa | B9: TPC | C9: Linearity | D9: Hysteresis | E9: PPC A | F9: Linearity | G9: Hysteresis | H9: PPC B | I9: Linearity | J9: Hysteresis
B10: (mV) | C10: (%) | D10: (%) | E10: (mV) | F10: (%) | G10: (%) | H10: (mV) | I10: (%) | J10: (%)
A11: 0 | B11: -1672.1 | C11: =(B12-B11)*100/B$33 -> 93.10172027 | D11: =(B11-B31)*100/(B$21-B$11) -> -0.07662835249 | E11: -1672.1 | F11: =(E12-E11)*100/E$33 -> 93.10172027 | G11: =(E11-E31)*100/(E$21-E$11) -> -0.07662835249 | H11: -1672.1 | I11: =(H12-H11)*100/H$33 -> 93.10172027 | J11: =(H11-H31)*100/(H$21-H$11) -> -0.07662835249
A12: 1 | B12: -1354.3 | C12: =(B13-B12)*100/B$33 -> 97.96480572 | D12: =(B12-B30)*100/(B$21-B$11) -> -0.1326259947 | E12: -1354.3 | F12: =(E13-E12)*100/E$33 -> 97.96480572 | G12: =(E12-E30)*100/(E$21-E$11) -> -0.1326259947 | H12: -1354.3 | I12: =(H13-H12)*100/H$33 -> 97.96480572 | J12: =(H12-H30)*100/(H$21-H$11) -> -0.1326259947
A13: 2 | B13: -1019.9 | C13: =(B14-B13)*100/B$33 -> 97.75973585 | D13: =(B13-B29)*100/(B$21-B$11) -> -0.1768346596 | E13: -1019.9 | F13: =(E14-E13)*100/E$33 -> 97.75973585 | G13: =(E13-E29)*100/(E$21-E$11) -> -0.1768346596 | H13: -1019.9 | I13: =(H14-H13)*100/H$33 -> 97.75973585 | J13: =(H13-H29)*100/(H$21-H$11) -> -0.1768346596
A14: 3 | B14: -686.2 | C14: 99.28311202 | D14: =(B14-B28)*100/(B$21-B$11) -> -0.3860890068 | E14: -686.2 | F14: 99.28311202 | G14: =(E14-E28)*100/(E$21-E$11) -> -0.3860890068 | H14: -686.2 | I14: 99.28311202 | J14: =(H14-H28)*100/(H$21-H$11) -> -0.3860890068
A15: 4 | B15: -347.3 | C15: 99.28311202 | D15: =(B15-B27)*100/(B$21-B$11) -> -0.2947244327 | E15: -347.3 | F15: 99.28311202 | G15: =(E15-E27)*100/(E$21-E$11) -> -0.2947244327 | H15: -347.3 | I15: 99.28311202 | J15: =(H15-H27)*100/(H$21-H$11) -> -0.2947244327
A16: 5 | B16: -8.4 | C16: 102.1540902 | D16: =(B16-B26)*100/(B$21-B$11) -> -0.3566165635 | E16: -8.4 | F16: 102.1540902 | G16: =(E16-E26)*100/(E$21-E$11) -> -0.3566165635 | H16: -8.4 | I16: 102.1540902 | J16: =(H16-H26)*100/(H$21-H$11) -> -0.3566165635
A17: 6 | B17: 340.3 | C17: 103.7360577 | D17: =(B17-B25)*100/(B$21-B$11) -> -0.2475685234 | E17: 340.3 | F17: 103.7360577 | G17: =(E17-E25)*100/(E$21-E$11) -> -0.2475685234 | H17: 340.3 | I17: 103.7360577 | J17: =(H17-H25)*100/(H$21-H$11) -> -0.2475685234
A18: 7 | B18: 694.4 | C18: 102.5349342 | D18: =(B18-B24)*100/(B$21-B$11) -> -0.1237842617 | E18: 694.4 | F18: 102.5349342 | G18: =(E18-E24)*100/(E$21-E$11) -> -0.1237842617 | H18: 694.4 | I18: 102.5349342 | J18: =(H18-H24)*100/(H$21-H$11) -> -0.1237842617
A19: 8 | B19: 1044.4 | C19: 99.95691301 | D19: =(B19-B23)*100/(B$21-B$11) -> -0.00884173298 | E19: 1044.4 | F19: 99.95691301 | G19: =(E19-E23)*100/(E$21-E$11) -> -0.00884173298 | H19: 1044.4 | I19: 99.95691301 | J19: =(H19-H23)*100/(H$21-H$11) -> -0.00884173298
A20: 9 | B20: 1385.6 | C20: 98.22846698 | D20: =(B20-B22)*100/(B$21-B$11) -> -0.3094606543 | E20: 1385.6 | F20: 98.22846698 | G20: =(E20-E22)*100/(E$21-E$11) -> -0.3094606543 | H20: 1385.6 | I20: 98.22846698 | J20: =(H20-H22)*100/(H$21-H$11) -> -0.3094606543
A21: 10 | B21: 1720.9 | C21: -95.15241895 | E21: 1720.9 | F21: -95.15241895 | H21: 1720.9 | I21: -95.15241895
A22: 9 | B22: 1396.1 | C22: -102.945074 | E22: 1396.1 | F22: -102.945074 | H22: 1396.1 | I22: -102.945074
A23: 8 | B23: 1044.7 | C23: -101.3924021 | E23: 1044.7 | F23: -101.3924021 | H23: 1044.7 | I23: -101.3924021
A24: 7 | B24: 698.6 | C24: -102.5056385 | E24: 698.6 | F24: -102.5056385 | H24: 698.6 | I24: -102.5056385
A25: 6 | B25: 348.7 | C25: -101.0701494 | E25: 348.7 | F25: -101.0701494 | H25: 348.7 | I25: -101.0701494
A26: 5 | B26: 3.7 | C26: -99.89832162 | E26: 3.7 | F26: -99.89832162 | H26: 3.7 | I26: -99.89832162
A27: 4 | B27: -337.3 | C27: -98.37494546 | E27: -337.3 | F27: -98.37494546 | H27: -337.3 | I27: -98.37494546
A28: 3 | B28: -673.1 | C28: -99.83973023 | E28: -673.1 | F28: -99.83973023 | H28: -673.1 | I28: -99.83973023
A29: 2 | B29: -1013.9 | C29: -98.40424115 | E29: -1013.9 | F29: -98.40424115 | H29: -1013.9 | I29: -98.40424115
A30: 1 | B30: -1349.8 | C30: -93.65833848 | E30: -1349.8 | F30: -93.65833848 | H30: -1349.8 | I30: -93.65833848
A31: 0 | B31: -1669.5 | E31: -1669.5 | H31: -1669.5
A32: Zero | B32: =INTERCEPT(B11:B31,$A11:$A31) -> -1694.71941 | C32: mV | E32: =INTERCEPT(E11:E31,$A11:$A31) -> -1694.71941 | F32: mV | H32: =INTERCEPT(H11:H31,$A11:$A31) -> -1694.71941 | I32: mV
A33: Slope | B33: =SLOPE(B11:B31,$A11:$A31) -> 341.3470762 | C33: mV/Mpa | E33: =SLOPE(E11:E31,$A11:$A31) -> 341.3470762 | F33: mV/Mpa | H33: =SLOPE(H11:H31,$A11:$A31) -> 341.3470762 | I33: mV/Mpa
A35: Arm Springs
A37: mm | B37: Arm 1 | C37: Linearity | D37: Hysteresis | E37: Arm 2 | F37: Linearity | G37: Hysteresis | H37: Arm 3 | I37: Linearity | J37: Hysteresis | K37: Arm 4 | L37: Linearity | M37: Hysteresis | N37: Arm 5 | O37: Linearity | P37: Hysteresis | Q37: Arm 6 | R37: Linearity | S37: Hysteresis
B38: (mV) | C38: (%) | D38: (%) | E38: (mV) | F38: (%) | G38: (%) | H38: (mV) | I38: (%) | J38: (%) | K38: (mV) | L38: (%) | M38: (%) | N38: (mV) | O38: (%) | P38: (%) | Q38: (mV) | R38: (%) | S38: (%)
A39: 0 | B39: -290.5 | C39: =(B40-B39)*100/B$53 -> 104.0472942 | D39: =(B39-B51)*100/(B$45-B$39) -> 0 | E39: 244.5 | F39: =(E40-E39)*100/E$53 -> 101.8415064 | G39: =(E39-E51)*100/(E$45-E$39) -> 0.2487850035 | H39: -274.8 | I39: =(H40-H39)*100/H$53 -> 104.1402495 | J39: =(H39-H51)*100/(H$45-H$39) -> 0 | K39: -290.5 | L39: =(K40-K39)*100/K$53 -> 104.0472942 | M39: =(K39-K51)*100/(K$45-K$39) -> 0 | N39: 244.5 | O39: =(N40-N39)*100/N$53 -> 101.8415064 | P39: =(N39-N51)*100/(N$45-N$39) -> 0.2487850035 | Q39: -274.8 | R39: =(Q40-Q39)*100/Q$53 -> 104.1402495 | S39: =(Q39-Q51)*100/(Q$45-Q$39) -> 0
A40: 1 | B40: 24.4 | C40: 102.7256391 | D40: =(B40-B50)*100/(B$45-B$39) -> 0.1100352113 | E40: 538.6 | F40: 100.8372889 | G40: =(E40-E50)*100/(E$45-E$39) -> 0.2024994214 | H40: 28.5 | I40: 101.4277273 | J40: =(H40-H50)*100/(H$45-H$39) -> 0.2692021307 | K40: 24.4 | L40: 102.7256391 | M40: =(K40-K50)*100/(K$45-K$39) -> 0.1100352113 | N40: 538.6 | O40: 100.8372889 | P40: =(N40-N50)*100/(N$45-N$39) -> 0.2024994214 | Q40: 28.5 | R40: 101.4277273 | S40: =(Q40-Q50)*100/(Q$45-Q$39) -> 0.2692021307
A41: 2 | B41: 335.3 | C41: 98.99196359 | D41: =(B41-B49)*100/(B$45-B$39) -> 0.2090669014 | E41: 829.8 | F41: 99.9023278 | G41: =(E41-E49)*100/(E$45-E$39) -> 0.3760703541 | H41: 323.9 | I41: 100.0542984 | J41: =(H41-H49)*100/(H$45-H$39) -> 0.3952116387 | K41: 335.3 | L41: 98.99196359 | M41: =(K41-K49)*100/(K$45-K$39) -> 0.2090669014 | N41: 829.8 | O41: 99.9023278 | P41: =(N41-N49)*100/(N$45-N$39) -> 0.3760703541 | Q41: 323.9 | R41: 100.0542984 | S41: =(Q41-Q49)*100/(Q$45-Q$39) -> 0.3952116387
A42: 3 | B42: 634.9 | C42: 98.52938432 | D42: =(B42-B48)*100/(B$45-B$39) -> 0.1595510563 | E42: 1118.3 | F42: 99.65993047 | G42: =(E42-E48)*100/(E$45-E$39) -> 0.2892848878 | H42: 615.3 | I42: 98.81821231 | J42: =(H42-H48)*100/(H$45-H$39) -> 0.378028524 | K42: 634.9 | L42: 98.52938432 | M42: =(K42-K48)*100/(K$45-K$39) -> 0.1595510563 | N42: 1118.3 | O42: 99.65993047 | P42: =(N42-N48)*100/(N$45-N$39) -> 0.2892848878 | Q42: 615.3 | R42: 98.81821231 | S42: =(Q42-Q48)*100/(Q$45-Q$39) -> 0.378028524
A43: 4 | B43: 933.1 | C43: 98.16592918 | D43: =(B43-B47)*100/(B$45-B$39) -> 0.2420774648 | E43: 1406.1 | F43: 99.00199486 | G43: =(E43-E47)*100/(E$45-E$39) -> 0.2950705855 | H43: 903.1 | I43: 97.89114777 | J43: =(H43-H47)*100/(H$45-H$39) -> 0.2291081963 | K43: 933.1 | L43: 98.16592918 | M43: =(K43-K47)*100/(K$45-K$39) -> 0.2420774648 | N43: 1406.1 | O43: 99.00199486 | P43: =(N43-N47)*100/(N$45-N$39) -> 0.2950705855 | Q43: 903.1 | R43: 97.89114777 | S43: =(Q43-Q47)*100/(Q$45-Q$39) -> 0.2291081963
A44: 5 | B44: 1230.2 | C44: 98.09984643 | D44: =(B44-B46)*100/(B$45-B$39) -> 0.1045334507 | E44: 1692 | F44: 97.27058537 | G44: =(E44-E46)*100/(E$45-E$39) -> 0.1677852349 | H44: 1188.2 | I44: 97.13576185 | J44: =(H44-H46)*100/(H$45-H$39) -> 0.1088263933 | K44: 1230.2 | L44: 98.09984643 | M44: =(K44-K46)*100/(K$45-K$39) -> 0.1045334507 | N44: 1692 | O44: 97.27058537 | P44: =(N44-N46)*100/(N$45-N$39) -> 0.1677852349 | Q44: 1188.2 | R44: 97.13576185 | S44: =(Q44-Q46)*100/(Q$45-Q$39) -> 0.1088263933
A45: 6 | B45: 1527.1 | C45: -98.72763258 | E45: 1972.9 | F45: -98.27480287 | H45: 1471.1 | I45: -97.7881406 | K45: 1527.1 | L45: -98.72763258 | N45: 1972.9 | O45: -98.27480287 | Q45: 1471.1 | R45: -97.7881406
A46: 5 | B46: 1228.3 | C46: -98.99196359 | E46: 1689.1 | F46: -99.76381504 | H46: 1186.3 | I46: -98.61219797 | K46: 1228.3 | L46: -98.99196359 | N46: 1689.1 | O46: -99.76381504 | Q46: 1186.3 | R46: -98.61219797
A47: 4 | B47: 928.7 | C47: -98.03376368 | E47: 1401 | F47: -99.62530228 | H47: 899.1 | I47: -99.71094112 | K47: 928.7 | L47: -98.03376368 | N47: 1401 | O47: -99.62530228 | Q47: 899.1 | R47: -99.71094112
A48: 3 | B48: 632 | C48: -99.28933598 | E48: 1113.3 | F48: -100.4217506 | H48: 608.7 | I48: -100.1573055 | K48: 632 | L48: -99.28933598 | N48: 1113.3 | O48: -100.4217506 | Q48: 608.7 | R48: -100.1573055
A49: 2 | B49: 331.5 | C49: -102.1308943 | E49: 823.3 | F49: -99.79844323 | H49: 317 | I49: -100.6723414 | K49: 331.5 | L49: -102.1308943 | N49: 823.3 | O49: -99.79844323 | Q49: 317 | R49: -100.6723414
A50: 1 | B50: 22.4 | C50: -103.3864666 | E50: 535.1 | F50: -102.1185319 | H50: 23.8 | I50: -102.5264704 | K50: 22.4 | L50: -103.3864666 | N50: 535.1 | O50: -102.1185319 | Q50: 23.8 | R50: -102.5264704
A51: 0 | B51: -290.5 | E51: 240.2 | H51: -274.8 | K51: -290.5 | N51: 240.2 | Q51: -274.8
A52: Zero | B52: =INTERCEPT(B39:B51,$A39:$A51) -> -280.6561462 | C52: mV | E52: =INTERCEPT(E39:E51,$A39:$A51) -> 246.7727575 | F52: mV | H52: =INTERCEPT(H39:H51,$A39:$A51) -> -266.8697674 | I52: mV | K52: =INTERCEPT(K39:K51,$A39:$A51) -> -280.6561462 | L52: mV | N52: =INTERCEPT(N39:N51,$A39:$A51) -> 246.7727575 | O52: mV | Q52: =INTERCEPT(Q39:Q51,$A39:$A51) -> -266.8697674 | R52: mV
A53: Slope | B53: =SLOPE(B39:B51,$A39:$A51) -> 302.6508306 | C53: mV/mm | E53: =SLOPE(E39:E51,$A39:$A51) -> 288.7820598 | F53: mV/mm | H53: =SLOPE(H39:H51,$A39:$A51) -> 291.2418605 | I53: mV/mm | K53: =SLOPE(K39:K51,$A39:$A51) -> 302.6508306 | L53: mV/mm | N53: =SLOPE(N39:N51,$A39:$A51) -> 288.7820598 | O53: mV/mm | Q53: =SLOPE(Q39:Q51,$A39:$A51) -> 291.2418605 | R53: mV/mm
A87: Do Not Enter Text Below This Line. | E87: Do Not Enter Text Below This Line. | I87: Do Not Enter Text Below This Line. | M87: Do Not Enter Text Below This Line. | Q87: Do Not Enter Text Below This Line.
A91: mm | B91: Arm 1 | C91: Arm 2 | D91: Arm 3 | E91: Arm 4 | F91: Arm 5 | G91: Arm 6 | I91: Mpa | J91: TPC | K91: PPC A | L91: PPC B
A92: Plot? | B92: TRUE | C92: TRUE | D92: TRUE | E92: TRUE | F92: TRUE | G92: TRUE | I92: plot? | J92: TRUE | K92: TRUE | L92: TRUE
A93: 0 | B93: =IF(B$92=TRUE,B39,#N/A) -> -290.5 | C93: =IF(C$92=TRUE,E39,#N/A) -> 244.5 | D93: =IF(D$92=TRUE,H39,#N/A) -> -274.8 | E93: =IF(E$92=TRUE,K39,#N/A) -> -290.5 | F93: =IF(F$92=TRUE,N39,#N/A) -> 244.5 | G93: =IF(G$92=TRUE,Q39,#N/A) -> -274.8 | I93: 0 | J93: =IF(J$92=TRUE,B11,#N/A) -> -1672.1 | K93: =IF(K$92=TRUE,E11,#N/A) -> -1672.1 | L93: =IF(L$92=TRUE,H11,#N/A) -> -1672.1
A94: 1 | B94: 24.4 | C94: 538.6 | D94: 28.5 | E94: 24.4 | F94: 538.6 | G94: 28.5 | I94: 1 | J94: =IF(J$92=TRUE,B12,#N/A) -> -1354.3 | K94: =IF(K$92=TRUE,E12,#N/A) -> -1354.3 | L94: =IF(L$92=TRUE,H12,#N/A) -> -1354.3
A95: 2 | B95: 335.3 | C95: 829.8 | D95: 323.9 | E95: 335.3 | F95: 829.8 | G95: 323.9 | I95: 2 | J95: -1019.9 | K95: -1019.9 | L95: -1019.9
A96: 3 | B96: 634.9 | C96: 1118.3 | D96: 615.3 | E96: 634.9 | F96: 1118.3 | G96: 615.3 | I96: 3 | J96: -686.2 | K96: -686.2 | L96: -686.2
A97: 4 | B97: 933.1 | C97: 1406.1 | D97: 903.1 | E97: 933.1 | F97: 1406.1 | G97: 903.1 | I97: 4 | J97: -347.3 | K97: -347.3 | L97: -347.3
A98: 5 | B98: 1230.2 | C98: 1692 | D98: 1188.2 | E98: 1230.2 | F98: 1692 | G98: 1188.2 | I98: 5 | J98: -8.4 | K98: -8.4 | L98: -8.4
A99: 6 | B99: 1527.1 | C99: 1972.9 | D99: 1471.1 | E99: 1527.1 | F99: 1972.9 | G99: 1471.1 | I99: 6 | J99: 340.3 | K99: 340.3 | L99: 340.3
A100: 5 | B100: 1228.3 | C100: 1689.1 | D100: 1186.3 | E100: 1228.3 | F100: 1689.1 | G100: 1186.3 | I100: 7 | J100: 694.4 | K100: 694.4 | L100: 694.4
A101: 4 | B101: 928.7 | C101: 1401 | D101: 899.1 | E101: 928.7 | F101: 1401 | G101: 899.1 | I101: 8 | J101: 1044.4 | K101: 1044.4 | L101: 1044.4
A102: 3 | B102: 632 | C102: 1113.3 | D102: 608.7 | E102: 632 | F102: 1113.3 | G102: 608.7 | I102: 9 | J102: 1385.6 | K102: 1385.6 | L102: 1385.6
A103: 2 | B103: 331.5 | C103: 823.3 | D103: 317 | E103: 331.5 | F103: 823.3 | G103: 317 | I103: 10 | J103: 1720.9 | K103: 1720.9 | L103: 1720.9
A104: 1 | B104: 22.4 | C104: 535.1 | D104: 23.8 | E104: 22.4 | F104: 535.1 | G104: 23.8 | I104: 9 | J104: 1396.1 | K104: 1396.1 | L104: 1396.1
A105: 0 | B105: -290.5 | C105: 240.2 | D105: -274.8 | E105: -290.5 | F105: 240.2 | G105: -274.8 | I105: 8 | J105: 1044.7 | K105: 1044.7 | L105: 1044.7
I106: 7 | J106: 698.6 | K106: 698.6 | L106: 698.6
I107: 6 | J107: 348.7 | K107: 348.7 | L107: 348.7
I108: 5 | J108: 3.7 | K108: 3.7 | L108: 3.7
I109: 4 | J109: -337.3 | K109: -337.3 | L109: -337.3
I110: 3 | J110: -673.1 | K110: -673.1 | L110: -673.1
I111: 2 | J111: -1013.9 | K111: -1013.9 | L111: -1013.9
I112: 1 | J112: -1349.8 | K112: -1349.8 | L112: -1349.8
I113: 0 | J113: -1669.5 | K113: -1669.5 | L113: -1669.5
